Workbook

Sheet MPG combinatiegebouw
B2: Berekenen MPG-eis combinatiegebouw
B3: 2025-10-04
C5: Projectkenmerken | I5: Werkwijze
C6: Projectnaam | G6: Projectnotities | I6: 1 | J6: Stel het gebouw samen. Selecteer één voor één de aanwezige gebruiksfuncties binnen het gebouw.
C7: Projectcode | I7: 2 | J7: Voer het aantal eenheden van herhalende ruimtes in. Bijvoorbeeld bij appartementen.
C8: Locatie | I8: 3 | J8: Voer de gebruiksoppervlakte (GO) in.
C9: Datum | I9: 4 | J9: Indien de gebruiksfunctie Wonen wordt geselecteerd, selecteer het type.
C10: Omschrijving gebouw | I10: 5 | J10: Indien de gebruiksfunctie Kantoor wordt geselecteerd, voer dan ook de schiloppervlakte in.
J11: Dit hoeft maar één keer te gebeuren, voor het hele gebouw (niet alleen de specifieke functie)
I12: 6 | J12: Indien de gebruiksfunctie Gemeenschappelijke Ruimte wordt geselecteerd, kies dan ook de sub-functie.
I13: 7 | J13: Lees de gewogen maximale MPG-score af. Lees de correctiefactor MPG af om in te vullen in GPR Gebouw 4.5
I14: … | J14: Zie het blad onder de berekening voor aanvullende informatie en achtergronddata
I16: Aantal eenheden | J16: GO per eenheid | L16: Als;gebouw [m2] | T16: MPG-eis gebouw | X16: Verbergen in eindversie
C17: Gebouw | I17: =SUM(I$28:I$127) -> 1 | J17: =SUMPRODUCT($J$28:$J$127,$I$28:$I$127) -> 50 | O17: =SUM($O$28:$O$127) -> 50 | P17: =SUMIFS($P$28:$P$127,$D$28:$D$127,$D$168) -> 0 | Q17: =SUM($Q$28:$Q$127) -> 50 | R17: =IFERROR(IF(AND($L$17<>0,SUM($Q$28:$Q$127)<>0),$L$17/SUM($Q$28:$Q$127),"Vul GO in"),"") -> Vul GO in | T17: =T21 -> -0.33
A18: verbergen
A19: verbergen | C19: Hulprij, verbergen in eindversie | O19: =SUM($O$28:$O$127)-IFERROR(SUM(_xlfn._xlws.FILTER($O$28:$O$127,$D$28:$D$127=$D$169)),0) -> 50 | P19: =SUM(IF($E$28:$E$127=$E$209,$I$28:$I$127*$J$28:$J$127,0)) -> 0 | Q19: =SUM(Q28:Q127) -> 50 | R19: =Q19-P19-O19 -> 0 | T19: =IFERROR(SUMPRODUCT(Q28:Q127,T28:T127),0) -> -16.25 | X19: =IFERROR(SUMPRODUCT(Q28:Q127,X28:X127),0) -> 77.5
A20: verbergen | C20: Hulprij, verbergen in eindversie | L20: zijn er fouten: | N20: =IF(COUNTBLANK($C$130:$C$132)=3,FALSE,TRUE) -> FALSE | O20: excl gem. ruimte | P20: GR naar rato | Q20: totaal | R20: GR naar functie | T20: =$T$19/$Q$19 -> -0.325 | X20: =$X$19/$Q$19 -> 1.55
O21: MPG-eis gebouw | T21: =IFERROR(IF($N$20=TRUE,"Verwerk fouten",$T$20),"Data invoeren") -> -0.33 | X21: =X20 -> 1.55
O22: Berekende MPG-waarde gebouw
O23: Correctiefactor MPG-waarde in GPR Gebouw 4.5 | T23: =IFERROR(X21/T21,"-") -> -4.77
C25: Nr. | D25: Gebruiksfunctie: Bbl | E25: Specificeer type/toewijzing aan: | G25: Kenmerk/notitie | I25: Aantal eenheden | J25: GO per eenheid | L25: Als;gebouw | N25: Afwijkende eis? | O25: Gebruiks-oppervlakte | P25: Gebruiks-oppervlakte | Q25: Gebruiks-oppervlakte | R25: Compactheid | T25: MPG-eis | X25: Eis_functie | Y25: Eis_wonen | Z25: Eis_kantoor | AA25: Toegewezen GO obv functie | AB25: Toegewezen GO obv naar rato | AC25: Som toegewezen GO
D26: (selecteer) | E26: (bij wonen & gem. ruimte) | G26: (Optioneel, voor eigen referentie) | I26: - | J26: [m2] | L26: [m2] | O26: Gebr. Functie | P26: Gem. Ruimte | Q26: Totaal | R26: - | T26: Per gebruiksfunctie
L27: i | O27: i | P27: i | Q27: i | R27: i
C28: 1 | D28: Kantoor | F28: =IF(AND(OR(D28=$D$157,D28=$D$168),E28=""),"!!","") ->  | I28: 1 | J28: 50 | K28: =IF(OR(AND(E28=$D$173,J28>=$F$174),AND(E28=$D$174,J28<$F$173),AND(E28=$D$175,J28>=$F$176),AND(E28=$D$176,J28<$F$175)),"!","") ->  | N28: =IF(OR(E28=$D$173,E28=$D$175,AND(D28=$D$162,$R$17>2.5)),"Ja","") -> Ja | O28: =IF(OR(D28=$D$156,D28=$D$168),0,I28*J28) -> 50 | P28: =IFERROR(IF(D28=$D$168,I28*J28,IF(OR(D28=$D$156,D28=$D$169),0,$AC28)),"") -> 0 | Q28: =IFERROR(IF(D28=$D$168,0,O28+P28),"") -> 50 | T28: =IFERROR(IF(D28=$D$157,Y28,IF(D28=$D$162,Z28,X28)),"Data ontbreekt!") -> -0.33 | X28: =IF(D28=$D$157,VLOOKUP(E28,$D$173:$E$177,2,FALSE),VLOOKUP(D28,$D$156:$E$169,2,FALSE)) -> 1.55 | Y28: =IFERROR(IF(E28=$D$173,1.6+0.015*(60-J28),IF(E28=$D$175,1.6+0.015*(80-J28),VLOOKUP(E28,$D$173:$E$177,2,FALSE))),0) -> 0.00 | Z28: =IFERROR(IF(D28=$D$162,IF(($R$17<2.5),$E$162,1.55+0.75*(($L$17/SUMPRODUCT($J$28:$J$127,$I$28:$I$127))-2.5)),0),"Invoeren data") -> -0.33 | AA28: =IF(D28<>$D$168, IF(MATCH(D28,D$28:D28,0)=ROW(D28)-ROW(D$28)+1, _xlfn.XLOOKUP(D28,$E$28:$E$127,$P$28:$P$127,0,0), 0), 0) -> 0.00 | AB28: =IF(NOT(D28=$D$168),$P$19*(O28/$O$19),0) -> 0.00 | AC28: =AB28+AA28 -> 0.00
C29: 2 | D29: Voeg functie toe: | O29: 0 | P29: 0 | Q29: 0 | T29: =IFERROR(IF(D29=$D$157,Y29,IF(D29=$D$162,Z29,X29)),"Data ontbreekt!") -> - | X29: - | Y29: 0.00 | Z29: 0.00 | AA29: =IF(D29<>$D$168, IF(MATCH(D29,D$28:D29,0)=ROW(D29)-ROW(D$28)+1, _xlfn.XLOOKUP(D29,$E$28:$E$127,$P$28:$P$127,0,0), 0), 0) -> 0.00 | AB29: 0.00 | AC29: =AB29+AA29 -> 0.00
C30: 3 | D30: Voeg functie toe: | E30: Verdeel naar rato GO | O30: 0 | P30: 0 | Q30: 0 | T30: - | X30: - | Y30: 0.00 | Z30: 0.00 | AA30: =IF(D30<>$D$168, IF(MATCH(D30,D$28:D30,0)=ROW(D30)-ROW(D$28)+1, _xlfn.XLOOKUP(D30,$E$28:$E$127,$P$28:$P$127,0,0), 0), 0) -> 0.00 | AB30: 0.00 | AC30: 0.00
C31: 4 | D31: Voeg functie toe: | O31: 0 | P31: 0 | Q31: 0 | T31: - | X31: - | Y31: 0.00 | Z31: 0.00 | AA31: =IF(D31<>$D$168, IF(MATCH(D31,D$28:D31,0)=ROW(D31)-ROW(D$28)+1, _xlfn.XLOOKUP(D31,$E$28:$E$127,$P$28:$P$127,0,0), 0), 0) -> 0.00 | AB31: 0.00 | AC31: 0.00
C32: 5 | D32: Voeg functie toe: | O32: 0 | P32: 0 | Q32: 0 | T32: - | X32: - | Y32: 0.00 | Z32: 0.00 | AA32: =IF(D32<>$D$168, IF(MATCH(D32,D$28:D32,0)=ROW(D32)-ROW(D$28)+1, _xlfn.XLOOKUP(D32,$E$28:$E$127,$P$28:$P$127,0,0), 0), 0) -> 0.00 | AB32: 0.00 | AC32: 0.00
C33: 6 | D33: Voeg functie toe: | O33: 0 | P33: 0 | Q33: 0 | T33: - | X33: - | Y33: 0.00 | Z33: 0.00 | AA33: =IF(D33<>$D$168, IF(MATCH(D33,D$28:D33,0)=ROW(D33)-ROW(D$28)+1, _xlfn.XLOOKUP(D33,$E$28:$E$127,$P$28:$P$127,0,0), 0), 0) -> 0.00 | AB33: 0.00 | AC33: 0.00
C34: 7 | D34: Voeg functie toe: | O34: 0 | P34: 0 | Q34: 0 | T34: - | X34: - | Y34: 0.00 | Z34: 0.00 | AA34: =IF(D34<>$D$168, IF(MATCH(D34,D$28:D34,0)=ROW(D34)-ROW(D$28)+1, _xlfn.XLOOKUP(D34,$E$28:$E$127,$P$28:$P$127,0,0), 0), 0) -> 0.00 | AB34: 0.00 | AC34: 0.00
C35: 8 | D35: Voeg functie toe: | O35: 0 | P35: 0 | Q35: 0 | T35: - | X35: - | Y35: 0.00 | Z35: 0.00 | AA35: =IF(D35<>$D$168, IF(MATCH(D35,D$28:D35,0)=ROW(D35)-ROW(D$28)+1, _xlfn.XLOOKUP(D35,$E$28:$E$127,$P$28:$P$127,0,0), 0), 0) -> 0.00 | AB35: 0.00 | AC35: 0.00
C36: 9 | D36: Voeg functie toe: | O36: 0 | P36: 0 | Q36: 0 | T36: - | X36: - | Y36: 0.00 | Z36: 0.00 | AA36: =IF(D36<>$D$168, IF(MATCH(D36,D$28:D36,0)=ROW(D36)-ROW(D$28)+1, _xlfn.XLOOKUP(D36,$E$28:$E$127,$P$28:$P$127,0,0), 0), 0) -> 0.00 | AB36: 0.00 | AC36: 0.00
C37: 10 | D37: Voeg functie toe: | O37: 0 | P37: 0 | Q37: 0 | T37: - | X37: - | Y37: 0.00 | Z37: 0.00 | AA37: =IF(D37<>$D$168, IF(MATCH(D37,D$28:D37,0)=ROW(D37)-ROW(D$28)+1, _xlfn.XLOOKUP(D37,$E$28:$E$127,$P$28:$P$127,0,0), 0), 0) -> 0.00 | AB37: 0.00 | AC37: 0.00
C38: 11 | D38: Voeg functie toe: | O38: 0 | P38: 0 | Q38: 0 | T38: - | X38: - | Y38: 0.00 | Z38: 0.00 | AA38: =IF(D38<>$D$168, IF(MATCH(D38,D$28:D38,0)=ROW(D38)-ROW(D$28)+1, _xlfn.XLOOKUP(D38,$E$28:$E$127,$P$28:$P$127,0,0), 0), 0) -> 0.00 | AB38: 0.00 | AC38: 0.00
C39: 12 | D39: Voeg functie toe: | O39: 0 | P39: 0 | Q39: 0 | T39: - | X39: - | Y39: 0.00 | Z39: 0.00 | AA39: =IF(D39<>$D$168, IF(MATCH(D39,D$28:D39,0)=ROW(D39)-ROW(D$28)+1, _xlfn.XLOOKUP(D39,$E$28:$E$127,$P$28:$P$127,0,0), 0), 0) -> 0.00 | AB39: 0.00 | AC39: 0.00
C40: 13 | D40: Voeg functie toe: | O40: 0 | P40: 0 | Q40: 0 | T40: - | X40: - | Y40: 0.00 | Z40: 0.00 | AA40: =IF(D40<>$D$168, IF(MATCH(D40,D$28:D40,0)=ROW(D40)-ROW(D$28)+1, _xlfn.XLOOKUP(D40,$E$28:$E$127,$P$28:$P$127,0,0), 0), 0) -> 0.00 | AB40: 0.00 | AC40: 0.00
C41: 14 | D41: Voeg functie toe: | O41: 0 | P41: 0 | Q41: 0 | T41: - | X41: - | Y41: 0.00 | Z41: 0.00 | AA41: =IF(D41<>$D$168, IF(MATCH(D41,D$28:D41,0)=ROW(D41)-ROW(D$28)+1, _xlfn.XLOOKUP(D41,$E$28:$E$127,$P$28:$P$127,0,0), 0), 0) -> 0.00 | AB41: 0.00 | AC41: 0.00
C42: 15 | D42: Voeg functie toe: | O42: 0 | P42: 0 | Q42: 0 | T42: - | X42: - | Y42: 0.00 | Z42: 0.00 | AA42: =IF(D42<>$D$168, IF(MATCH(D42,D$28:D42,0)=ROW(D42)-ROW(D$28)+1, _xlfn.XLOOKUP(D42,$E$28:$E$127,$P$28:$P$127,0,0), 0), 0) -> 0.00 | AB42: 0.00 | AC42: 0.00
C43: 16 | D43: Voeg functie toe: | O43: 0 | P43: 0 | Q43: 0 | T43: - | X43: - | Y43: 0.00 | Z43: 0.00 | AA43: =IF(D43<>$D$168, IF(MATCH(D43,D$28:D43,0)=ROW(D43)-ROW(D$28)+1, _xlfn.XLOOKUP(D43,$E$28:$E$127,$P$28:$P$127,0,0), 0), 0) -> 0.00 | AB43: 0.00 | AC43: 0.00
C44: 17 | D44: Voeg functie toe: | O44: 0 | P44: 0 | Q44: 0 | T44: - | X44: - | Y44: 0.00 | Z44: 0.00 | AA44: =IF(D44<>$D$168, IF(MATCH(D44,D$28:D44,0)=ROW(D44)-ROW(D$28)+1, _xlfn.XLOOKUP(D44,$E$28:$E$127,$P$28:$P$127,0,0), 0), 0) -> 0.00 | AB44: 0.00 | AC44: 0.00
C45: 18 | D45: Voeg functie toe: | O45: 0 | P45: 0 | Q45: 0 | T45: - | X45: - | Y45: 0.00 | Z45: 0.00 | AA45: =IF(D45<>$D$168, IF(MATCH(D45,D$28:D45,0)=ROW(D45)-ROW(D$28)+1, _xlfn.XLOOKUP(D45,$E$28:$E$127,$P$28:$P$127,0,0), 0), 0) -> 0.00 | AB45: 0.00 | AC45: 0.00
C46: 19 | D46: Voeg functie toe: | O46: 0 | P46: 0 | Q46: 0 | T46: - | X46: - | Y46: 0.00 | Z46: 0.00 | AA46: =IF(D46<>$D$168, IF(MATCH(D46,D$28:D46,0)=ROW(D46)-ROW(D$28)+1, _xlfn.XLOOKUP(D46,$E$28:$E$127,$P$28:$P$127,0,0), 0), 0) -> 0.00 | AB46: 0.00 | AC46: 0.00
C47: 20 | D47: Voeg functie toe: | O47: 0 | P47: 0 | Q47: 0 | T47: - | X47: - | Y47: 0.00 | Z47: 0.00 | AA47: =IF(D47<>$D$168, IF(MATCH(D47,D$28:D47,0)=ROW(D47)-ROW(D$28)+1, _xlfn.XLOOKUP(D47,$E$28:$E$127,$P$28:$P$127,0,0), 0), 0) -> 0.00 | AB47: 0.00 | AC47: 0.00
C48: 21 | D48: Voeg functie toe: | O48: 0 | P48: 0 | Q48: 0 | T48: - | X48: - | Y48: 0.00 | Z48: 0.00 | AA48: =IF(D48<>$D$168, IF(MATCH(D48,D$28:D48,0)=ROW(D48)-ROW(D$28)+1, _xlfn.XLOOKUP(D48,$E$28:$E$127,$P$28:$P$127,0,0), 0), 0) -> 0.00 | AB48: 0.00 | AC48: 0.00
C49: 22 | D49: Voeg functie toe: | O49: 0 | P49: 0 | Q49: 0 | T49: - | X49: - | Y49: 0.00 | Z49: 0.00 | AA49: =IF(D49<>$D$168, IF(MATCH(D49,D$28:D49,0)=ROW(D49)-ROW(D$28)+1, _xlfn.XLOOKUP(D49,$E$28:$E$127,$P$28:$P$127,0,0), 0), 0) -> 0.00 | AB49: 0.00 | AC49: 0.00
C50: 23 | D50: Voeg functie toe: | O50: 0 | P50: 0 | Q50: 0 | T50: - | X50: - | Y50: 0.00 | Z50: 0.00 | AA50: =IF(D50<>$D$168, IF(MATCH(D50,D$28:D50,0)=ROW(D50)-ROW(D$28)+1, _xlfn.XLOOKUP(D50,$E$28:$E$127,$P$28:$P$127,0,0), 0), 0) -> 0.00 | AB50: 0.00 | AC50: 0.00
C51: 24 | D51: Voeg functie toe: | O51: 0 | P51: 0 | Q51: 0 | T51: - | X51: - | Y51: 0.00 | Z51: 0.00 | AA51: =IF(D51<>$D$168, IF(MATCH(D51,D$28:D51,0)=ROW(D51)-ROW(D$28)+1, _xlfn.XLOOKUP(D51,$E$28:$E$127,$P$28:$P$127,0,0), 0), 0) -> 0.00 | AB51: 0.00 | AC51: 0.00
C52: 25 | D52: Voeg functie toe: | O52: 0 | P52: 0 | Q52: 0 | T52: - | X52: - | Y52: 0.00 | Z52: 0.00 | AA52: =IF(D52<>$D$168, IF(MATCH(D52,D$28:D52,0)=ROW(D52)-ROW(D$28)+1, _xlfn.XLOOKUP(D52,$E$28:$E$127,$P$28:$P$127,0,0), 0), 0) -> 0.00 | AB52: 0.00 | AC52: 0.00
C53: 26 | D53: Voeg functie toe: | O53: 0 | P53: 0 | Q53: 0 | T53: - | X53: - | Y53: 0.00 | Z53: 0.00 | AA53: =IF(D53<>$D$168, IF(MATCH(D53,D$28:D53,0)=ROW(D53)-ROW(D$28)+1, _xlfn.XLOOKUP(D53,$E$28:$E$127,$P$28:$P$127,0,0), 0), 0) -> 0.00 | AB53: 0.00 | AC53: 0.00
C54: 27 | D54: Voeg functie toe: | O54: 0 | P54: 0 | Q54: 0 | T54: - | X54: - | Y54: 0.00 | Z54: 0.00 | AA54: =IF(D54<>$D$168, IF(MATCH(D54,D$28:D54,0)=ROW(D54)-ROW(D$28)+1, _xlfn.XLOOKUP(D54,$E$28:$E$127,$P$28:$P$127,0,0), 0), 0) -> 0.00 | AB54: 0.00 | AC54: 0.00
C55: 28 | D55: Voeg functie toe: | O55: 0 | P55: 0 | Q55: 0 | T55: - | X55: - | Y55: 0.00 | Z55: 0.00 | AA55: =IF(D55<>$D$168, IF(MATCH(D55,D$28:D55,0)=ROW(D55)-ROW(D$28)+1, _xlfn.XLOOKUP(D55,$E$28:$E$127,$P$28:$P$127,0,0), 0), 0) -> 0.00 | AB55: 0.00 | AC55: 0.00
C56: 29 | D56: Voeg functie toe: | O56: 0 | P56: 0 | Q56: 0 | T56: - | X56: - | Y56: 0.00 | Z56: 0.00 | AA56: =IF(D56<>$D$168, IF(MATCH(D56,D$28:D56,0)=ROW(D56)-ROW(D$28)+1, _xlfn.XLOOKUP(D56,$E$28:$E$127,$P$28:$P$127,0,0), 0), 0) -> 0.00 | AB56: 0.00 | AC56: 0.00
C57: 30 | D57: Voeg functie toe: | O57: 0 | P57: 0 | Q57: 0 | T57: - | X57: - | Y57: 0.00 | Z57: 0.00 | AA57: =IF(D57<>$D$168, IF(MATCH(D57,D$28:D57,0)=ROW(D57)-ROW(D$28)+1, _xlfn.XLOOKUP(D57,$E$28:$E$127,$P$28:$P$127,0,0), 0), 0) -> 0.00 | AB57: 0.00 | AC57: 0.00
C58: 31 | D58: Voeg functie toe: | O58: 0 | P58: 0 | Q58: 0 | T58: - | X58: - | Y58: 0.00 | Z58: 0.00 | AA58: =IF(D58<>$D$168, IF(MATCH(D58,D$28:D58,0)=ROW(D58)-ROW(D$28)+1, _xlfn.XLOOKUP(D58,$E$28:$E$127,$P$28:$P$127,0,0), 0), 0) -> 0.00 | AB58: 0.00 | AC58: 0.00
C59: 32 | D59: Voeg functie toe: | O59: 0 | P59: 0 | Q59: 0 | T59: - | X59: - | Y59: 0.00 | Z59: 0.00 | AA59: =IF(D59<>$D$168, IF(MATCH(D59,D$28:D59,0)=ROW(D59)-ROW(D$28)+1, _xlfn.XLOOKUP(D59,$E$28:$E$127,$P$28:$P$127,0,0), 0), 0) -> 0.00 | AB59: 0.00 | AC59: 0.00
C60: 33 | D60: Voeg functie toe: | O60: 0 | P60: 0 | Q60: 0 | T60: - | X60: - | Y60: 0.00 | Z60: 0.00 | AA60: =IF(D60<>$D$168, IF(MATCH(D60,D$28:D60,0)=ROW(D60)-ROW(D$28)+1, _xlfn.XLOOKUP(D60,$E$28:$E$127,$P$28:$P$127,0,0), 0), 0) -> 0.00 | AB60: 0.00 | AC60: 0.00
C61: 34 | D61: Voeg functie toe: | O61: 0 | P61: 0 | Q61: 0 | T61: - | X61: - | Y61: 0.00 | Z61: 0.00 | AA61: =IF(D61<>$D$168, IF(MATCH(D61,D$28:D61,0)=ROW(D61)-ROW(D$28)+1, _xlfn.XLOOKUP(D61,$E$28:$E$127,$P$28:$P$127,0,0), 0), 0) -> 0.00 | AB61: 0.00 | AC61: 0.00
C62: 35 | D62: Voeg functie toe: | O62: 0 | P62: 0 | Q62: 0 | T62: - | X62: - | Y62: 0.00 | Z62: 0.00 | AA62: =IF(D62<>$D$168, IF(MATCH(D62,D$28:D62,0)=ROW(D62)-ROW(D$28)+1, _xlfn.XLOOKUP(D62,$E$28:$E$127,$P$28:$P$127,0,0), 0), 0) -> 0.00 | AB62: 0.00 | AC62: 0.00
C63: 36 | D63: Voeg functie toe: | O63: 0 | P63: 0 | Q63: 0 | T63: - | X63: - | Y63: 0.00 | Z63: 0.00 | AA63: =IF(D63<>$D$168, IF(MATCH(D63,D$28:D63,0)=ROW(D63)-ROW(D$28)+1, _xlfn.XLOOKUP(D63,$E$28:$E$127,$P$28:$P$127,0,0), 0), 0) -> 0.00 | AB63: 0.00 | AC63: 0.00
C64: 37 | D64: Voeg functie toe: | O64: 0 | P64: 0 | Q64: 0 | T64: - | X64: - | Y64: 0.00 | Z64: 0.00 | AA64: =IF(D64<>$D$168, IF(MATCH(D64,D$28:D64,0)=ROW(D64)-ROW(D$28)+1, _xlfn.XLOOKUP(D64,$E$28:$E$127,$P$28:$P$127,0,0), 0), 0) -> 0.00 | AB64: 0.00 | AC64: 0.00
C65: 38 | D65: Voeg functie toe: | O65: 0 | P65: 0 | Q65: 0 | T65: - | X65: - | Y65: 0.00 | Z65: 0.00 | AA65: =IF(D65<>$D$168, IF(MATCH(D65,D$28:D65,0)=ROW(D65)-ROW(D$28)+1, _xlfn.XLOOKUP(D65,$E$28:$E$127,$P$28:$P$127,0,0), 0), 0) -> 0.00 | AB65: 0.00 | AC65: 0.00
C66: 39 | D66: Voeg functie toe: | O66: 0 | P66: 0 | Q66: 0 | T66: - | X66: - | Y66: 0.00 | Z66: 0.00 | AA66: =IF(D66<>$D$168, IF(MATCH(D66,D$28:D66,0)=ROW(D66)-ROW(D$28)+1, _xlfn.XLOOKUP(D66,$E$28:$E$127,$P$28:$P$127,0,0), 0), 0) -> 0.00 | AB66: 0.00 | AC66: 0.00
C67: 40 | D67: Voeg functie toe: | O67: 0 | P67: 0 | Q67: 0 | T67: - | X67: - | Y67: 0.00 | Z67: 0.00 | AA67: =IF(D67<>$D$168, IF(MATCH(D67,D$28:D67,0)=ROW(D67)-ROW(D$28)+1, _xlfn.XLOOKUP(D67,$E$28:$E$127,$P$28:$P$127,0,0), 0), 0) -> 0.00 | AB67: 0.00 | AC67: 0.00
C68: 41 | D68: Voeg functie toe: | O68: 0 | P68: 0 | Q68: 0 | T68: - | X68: - | Y68: 0.00 | Z68: 0.00 | AA68: =IF(D68<>$D$168, IF(MATCH(D68,D$28:D68,0)=ROW(D68)-ROW(D$28)+1, _xlfn.XLOOKUP(D68,$E$28:$E$127,$P$28:$P$127,0,0), 0), 0) -> 0.00 | AB68: 0.00 | AC68: 0.00
C69: 42 | D69: Voeg functie toe: | O69: 0 | P69: 0 | Q69: 0 | T69: - | X69: - | Y69: 0.00 | Z69: 0.00 | AA69: =IF(D69<>$D$168, IF(MATCH(D69,D$28:D69,0)=ROW(D69)-ROW(D$28)+1, _xlfn.XLOOKUP(D69,$E$28:$E$127,$P$28:$P$127,0,0), 0), 0) -> 0.00 | AB69: 0.00 | AC69: 0.00
C70: 43 | D70: Voeg functie toe: | O70: 0 | P70: 0 | Q70: 0 | T70: - | X70: - | Y70: 0.00 | Z70: 0.00 | AA70: =IF(D70<>$D$168, IF(MATCH(D70,D$28:D70,0)=ROW(D70)-ROW(D$28)+1, _xlfn.XLOOKUP(D70,$E$28:$E$127,$P$28:$P$127,0,0), 0), 0) -> 0.00 | AB70: 0.00 | AC70: 0.00
C71: 44 | D71: Voeg functie toe: | O71: 0 | P71: 0 | Q71: 0 | T71: - | X71: - | Y71: 0.00 | Z71: 0.00 | AA71: =IF(D71<>$D$168, IF(MATCH(D71,D$28:D71,0)=ROW(D71)-ROW(D$28)+1, _xlfn.XLOOKUP(D71,$E$28:$E$127,$P$28:$P$127,0,0), 0), 0) -> 0.00 | AB71: 0.00 | AC71: 0.00
C72: 45 | D72: Voeg functie toe: | O72: 0 | P72: 0 | Q72: 0 | T72: - | X72: - | Y72: 0.00 | Z72: 0.00 | AA72: =IF(D72<>$D$168, IF(MATCH(D72,D$28:D72,0)=ROW(D72)-ROW(D$28)+1, _xlfn.XLOOKUP(D72,$E$28:$E$127,$P$28:$P$127,0,0), 0), 0) -> 0.00 | AB72: 0.00 | AC72: 0.00
C73: 46 | D73: Voeg functie toe: | O73: 0 | P73: 0 | Q73: 0 | T73: - | X73: - | Y73: 0.00 | Z73: 0.00 | AA73: =IF(D73<>$D$168, IF(MATCH(D73,D$28:D73,0)=ROW(D73)-ROW(D$28)+1, _xlfn.XLOOKUP(D73,$E$28:$E$127,$P$28:$P$127,0,0), 0), 0) -> 0.00 | AB73: 0.00 | AC73: 0.00
C74: 47 | D74: Voeg functie toe: | O74: 0 | P74: 0 | Q74: 0 | T74: - | X74: - | Y74: 0.00 | Z74: 0.00 | AA74: =IF(D74<>$D$168, IF(MATCH(D74,D$28:D74,0)=ROW(D74)-ROW(D$28)+1, _xlfn.XLOOKUP(D74,$E$28:$E$127,$P$28:$P$127,0,0), 0), 0) -> 0.00 | AB74: 0.00 | AC74: 0.00
C75: 48 | D75: Voeg functie toe: | O75: 0 | P75: 0 | Q75: 0 | T75: - | X75: - | Y75: 0.00 | Z75: 0.00 | AA75: =IF(D75<>$D$168, IF(MATCH(D75,D$28:D75,0)=ROW(D75)-ROW(D$28)+1, _xlfn.XLOOKUP(D75,$E$28:$E$127,$P$28:$P$127,0,0), 0), 0) -> 0.00 | AB75: 0.00 | AC75: 0.00
C76: 49 | D76: Voeg functie toe: | O76: 0 | P76: 0 | Q76: 0 | T76: - | X76: - | Y76: 0.00 | Z76: 0.00 | AA76: =IF(D76<>$D$168, IF(MATCH(D76,D$28:D76,0)=ROW(D76)-ROW(D$28)+1, _xlfn.XLOOKUP(D76,$E$28:$E$127,$P$28:$P$127,0,0), 0), 0) -> 0.00 | AB76: 0.00 | AC76: 0.00
C77: 50 | D77: Voeg functie toe: | O77: 0 | P77: 0 | Q77: 0 | T77: - | X77: - | Y77: 0.00 | Z77: 0.00 | AA77: =IF(D77<>$D$168, IF(MATCH(D77,D$28:D77,0)=ROW(D77)-ROW(D$28)+1, _xlfn.XLOOKUP(D77,$E$28:$E$127,$P$28:$P$127,0,0), 0), 0) -> 0.00 | AB77: 0.00 | AC77: 0.00
C78: 51 | D78: Voeg functie toe: | O78: 0 | P78: 0 | Q78: 0 | T78: - | X78: - | Y78: 0.00 | Z78: 0.00 | AA78: =IF(D78<>$D$168, IF(MATCH(D78,D$28:D78,0)=ROW(D78)-ROW(D$28)+1, _xlfn.XLOOKUP(D78,$E$28:$E$127,$P$28:$P$127,0,0), 0), 0) -> 0.00 | AB78: 0.00 | AC78: 0.00
C79: 52 | D79: Voeg functie toe: | O79: 0 | P79: 0 | Q79: 0 | T79: - | X79: - | Y79: 0.00 | Z79: 0.00 | AA79: =IF(D79<>$D$168, IF(MATCH(D79,D$28:D79,0)=ROW(D79)-ROW(D$28)+1, _xlfn.XLOOKUP(D79,$E$28:$E$127,$P$28:$P$127,0,0), 0), 0) -> 0.00 | AB79: 0.00 | AC79: 0.00
C80: 53 | D80: Voeg functie toe: | O80: 0 | P80: 0 | Q80: 0 | T80: - | X80: - | Y80: 0.00 | Z80: 0.00 | AA80: =IF(D80<>$D$168, IF(MATCH(D80,D$28:D80,0)=ROW(D80)-ROW(D$28)+1, _xlfn.XLOOKUP(D80,$E$28:$E$127,$P$28:$P$127,0,0), 0), 0) -> 0.00 | AB80: 0.00 | AC80: 0.00
C81: 54 | D81: Voeg functie toe: | O81: 0 | P81: 0 | Q81: 0 | T81: - | X81: - | Y81: 0.00 | Z81: 0.00 | AA81: =IF(D81<>$D$168, IF(MATCH(D81,D$28:D81,0)=ROW(D81)-ROW(D$28)+1, _xlfn.XLOOKUP(D81,$E$28:$E$127,$P$28:$P$127,0,0), 0), 0) -> 0.00 | AB81: 0.00 | AC81: 0.00
C82: 55 | D82: Voeg functie toe: | O82: 0 | P82: 0 | Q82: 0 | T82: - | X82: - | Y82: 0.00 | Z82: 0.00 | AA82: =IF(D82<>$D$168, IF(MATCH(D82,D$28:D82,0)=ROW(D82)-ROW(D$28)+1, _xlfn.XLOOKUP(D82,$E$28:$E$127,$P$28:$P$127,0,0), 0), 0) -> 0.00 | AB82: 0.00 | AC82: 0.00
C83: 56 | D83: Voeg functie toe: | O83: 0 | P83: 0 | Q83: 0 | T83: - | X83: - | Y83: 0.00 | Z83: 0.00 | AA83: =IF(D83<>$D$168, IF(MATCH(D83,D$28:D83,0)=ROW(D83)-ROW(D$28)+1, _xlfn.XLOOKUP(D83,$E$28:$E$127,$P$28:$P$127,0,0), 0), 0) -> 0.00 | AB83: 0.00 | AC83: 0.00
C84: 57 | D84: Voeg functie toe: | O84: 0 | P84: 0 | Q84: 0 | T84: - | X84: - | Y84: 0.00 | Z84: 0.00 | AA84: =IF(D84<>$D$168, IF(MATCH(D84,D$28:D84,0)=ROW(D84)-ROW(D$28)+1, _xlfn.XLOOKUP(D84,$E$28:$E$127,$P$28:$P$127,0,0), 0), 0) -> 0.00 | AB84: 0.00 | AC84: 0.00
C85: 58 | D85: Voeg functie toe: | O85: 0 | P85: 0 | Q85: 0 | T85: - | X85: - | Y85: 0.00 | Z85: 0.00 | AA85: =IF(D85<>$D$168, IF(MATCH(D85,D$28:D85,0)=ROW(D85)-ROW(D$28)+1, _xlfn.XLOOKUP(D85,$E$28:$E$127,$P$28:$P$127,0,0), 0), 0) -> 0.00 | AB85: 0.00 | AC85: 0.00
C86: 59 | D86: Voeg functie toe: | O86: 0 | P86: 0 | Q86: 0 | T86: - | X86: - | Y86: 0.00 | Z86: 0.00 | AA86: =IF(D86<>$D$168, IF(MATCH(D86,D$28:D86,0)=ROW(D86)-ROW(D$28)+1, _xlfn.XLOOKUP(D86,$E$28:$E$127,$P$28:$P$127,0,0), 0), 0) -> 0.00 | AB86: 0.00 | AC86: 0.00
C87: 60 | D87: Voeg functie toe: | O87: 0 | P87: 0 | Q87: 0 | T87: - | X87: - | Y87: 0.00 | Z87: 0.00 | AA87: =IF(D87<>$D$168, IF(MATCH(D87,D$28:D87,0)=ROW(D87)-ROW(D$28)+1, _xlfn.XLOOKUP(D87,$E$28:$E$127,$P$28:$P$127,0,0), 0), 0) -> 0.00 | AB87: 0.00 | AC87: 0.00
C88: 61 | D88: Voeg functie toe: | O88: 0 | P88: 0 | Q88: 0 | T88: - | X88: - | Y88: 0.00 | Z88: 0.00 | AA88: =IF(D88<>$D$168, IF(MATCH(D88,D$28:D88,0)=ROW(D88)-ROW(D$28)+1, _xlfn.XLOOKUP(D88,$E$28:$E$127,$P$28:$P$127,0,0), 0), 0) -> 0.00 | AB88: 0.00 | AC88: 0.00
C89: 62 | D89: Voeg functie toe: | O89: 0 | P89: 0 | Q89: 0 | T89: - | X89: - | Y89: 0.00 | Z89: 0.00 | AA89: =IF(D89<>$D$168, IF(MATCH(D89,D$28:D89,0)=ROW(D89)-ROW(D$28)+1, _xlfn.XLOOKUP(D89,$E$28:$E$127,$P$28:$P$127,0,0), 0), 0) -> 0.00 | AB89: 0.00 | AC89: 0.00
C90: 63 | D90: Voeg functie toe: | O90: 0 | P90: 0 | Q90: 0 | T90: - | X90: - | Y90: 0.00 | Z90: 0.00 | AA90: =IF(D90<>$D$168, IF(MATCH(D90,D$28:D90,0)=ROW(D90)-ROW(D$28)+1, _xlfn.XLOOKUP(D90,$E$28:$E$127,$P$28:$P$127,0,0), 0), 0) -> 0.00 | AB90: 0.00 | AC90: 0.00
C91: 64 | D91: Voeg functie toe: | O91: 0 | P91: 0 | Q91: 0 | T91: - | X91: - | Y91: 0.00 | Z91: 0.00 | AA91: =IF(D91<>$D$168, IF(MATCH(D91,D$28:D91,0)=ROW(D91)-ROW(D$28)+1, _xlfn.XLOOKUP(D91,$E$28:$E$127,$P$28:$P$127,0,0), 0), 0) -> 0.00 | AB91: 0.00 | AC91: 0.00
C92: 65 | D92: Voeg functie toe: | F92: =IF(AND(OR(D92=$D$157,D92=$D$168),E92=""),"!!","") ->  | K92: =IF(OR(AND(E92=$D$173,J92>=$F$174),AND(E92=$D$174,J92<$F$173),AND(E92=$D$175,J92>=$F$176),AND(E92=$D$176,J92<$F$175)),"!","") ->  | N92: =IF(OR(E92=$D$173,E92=$D$175,AND(D92=$D$162,$R$17>2.5)),"Ja","") ->  | O92: =IF(OR(D92=$D$156,D92=$D$168),0,I92*J92) -> 0 | P92: =IFERROR(IF(D92=$D$168,I92*J92,IF(OR(D92=$D$156,D92=$D$169),0,$AC92)),"") -> 0 | Q92: =IFERROR(IF(D92=$D$168,0,O92+P92),"") -> 0 | T92: - | X92: =IF(D92=$D$157,VLOOKUP(E92,$D$173:$E$177,2,FALSE),VLOOKUP(D92,$D$156:$E$169,2,FALSE)) -> - | Y92: =IFERROR(IF(E92=$D$173,1.6+0.015*(60-J92),IF(E92=$D$175,1.6+0.015*(80-J92),VLOOKUP(E92,$D$173:$E$177,2,FALSE))),0) -> 0.00 | Z92: =IFERROR(IF(D92=$D$162,IF(($R$17<2.5),$E$162,1.55+0.75*(($L$17/SUMPRODUCT($J$28:$J$127,$I$28:$I$127))-2.5)),0),"Invoeren data") -> 0.00 | AA92: =IF(D92<>$D$168, IF(MATCH(D92,D$28:D92,0)=ROW(D92)-ROW(D$28)+1, _xlfn.XLOOKUP(D92,$E$28:$E$127,$P$28:$P$127,0,0), 0), 0) -> 0.00 | AB92: =IF(NOT(D92=$D$168),$P$19*(O92/$O$19),0) -> 0.00 | AC92: 0.00
C93: 66 | D93: Voeg functie toe: | O93: 0 | P93: 0 | Q93: 0 | T93: =IFERROR(IF(D93=$D$157,Y93,IF(D93=$D$162,Z93,X93)),"Data ontbreekt!") -> - | X93: - | Y93: 0.00 | Z93: 0.00 | AA93: =IF(D93<>$D$168, IF(MATCH(D93,D$28:D93,0)=ROW(D93)-ROW(D$28)+1, _xlfn.XLOOKUP(D93,$E$28:$E$127,$P$28:$P$127,0,0), 0), 0) -> 0.00 | AB93: 0.00 | AC93: =AB93+AA93 -> 0.00
C94: 67 | D94: Voeg functie toe: | O94: 0 | P94: 0 | Q94: 0 | T94: - | X94: - | Y94: 0.00 | Z94: 0.00 | AA94: =IF(D94<>$D$168, IF(MATCH(D94,D$28:D94,0)=ROW(D94)-ROW(D$28)+1, _xlfn.XLOOKUP(D94,$E$28:$E$127,$P$28:$P$127,0,0), 0), 0) -> 0.00 | AB94: 0.00 | AC94: 0.00
C95: 68 | D95: Voeg functie toe: | O95: 0 | P95: 0 | Q95: 0 | T95: - | X95: - | Y95: 0.00 | Z95: 0.00 | AA95: =IF(D95<>$D$168, IF(MATCH(D95,D$28:D95,0)=ROW(D95)-ROW(D$28)+1, _xlfn.XLOOKUP(D95,$E$28:$E$127,$P$28:$P$127,0,0), 0), 0) -> 0.00 | AB95: 0.00 | AC95: 0.00
C96: 69 | D96: Voeg functie toe: | O96: 0 | P96: 0 | Q96: 0 | T96: - | X96: - | Y96: 0.00 | Z96: 0.00 | AA96: =IF(D96<>$D$168, IF(MATCH(D96,D$28:D96,0)=ROW(D96)-ROW(D$28)+1, _xlfn.XLOOKUP(D96,$E$28:$E$127,$P$28:$P$127,0,0), 0), 0) -> 0.00 | AB96: 0.00 | AC96: 0.00
C97: 70 | D97: Voeg functie toe: | O97: 0 | P97: 0 | Q97: 0 | T97: - | X97: - | Y97: 0.00 | Z97: 0.00 | AA97: =IF(D97<>$D$168, IF(MATCH(D97,D$28:D97,0)=ROW(D97)-ROW(D$28)+1, _xlfn.XLOOKUP(D97,$E$28:$E$127,$P$28:$P$127,0,0), 0), 0) -> 0.00 | AB97: 0.00 | AC97: 0.00
C98: 71 | D98: Voeg functie toe: | O98: 0 | P98: 0 | Q98: 0 | T98: - | X98: - | Y98: 0.00 | Z98: 0.00 | AA98: =IF(D98<>$D$168, IF(MATCH(D98,D$28:D98,0)=ROW(D98)-ROW(D$28)+1, _xlfn.XLOOKUP(D98,$E$28:$E$127,$P$28:$P$127,0,0), 0), 0) -> 0.00 | AB98: 0.00 | AC98: 0.00
C99: 72 | D99: Voeg functie toe: | O99: 0 | P99: 0 | Q99: 0 | T99: - | X99: - | Y99: 0.00 | Z99: 0.00 | AA99: =IF(D99<>$D$168, IF(MATCH(D99,D$28:D99,0)=ROW(D99)-ROW(D$28)+1, _xlfn.XLOOKUP(D99,$E$28:$E$127,$P$28:$P$127,0,0), 0), 0) -> 0.00 | AB99: 0.00 | AC99: 0.00
C100: 73 | D100: Voeg functie toe: | O100: 0 | P100: 0 | Q100: 0 | T100: - | X100: - | Y100: 0.00 | Z100: 0.00 | AA100: =IF(D100<>$D$168, IF(MATCH(D100,D$28:D100,0)=ROW(D100)-ROW(D$28)+1, _xlfn.XLOOKUP(D100,$E$28:$E$127,$P$28:$P$127,0,0), 0), 0) -> 0.00 | AB100: 0.00 | AC100: 0.00
C101: 74 | D101: Voeg functie toe: | O101: 0 | P101: 0 | Q101: 0 | T101: - | X101: - | Y101: 0.00 | Z101: 0.00 | AA101: =IF(D101<>$D$168, IF(MATCH(D101,D$28:D101,0)=ROW(D101)-ROW(D$28)+1, _xlfn.XLOOKUP(D101,$E$28:$E$127,$P$28:$P$127,0,0), 0), 0) -> 0.00 | AB101: 0.00 | AC101: 0.00
C102: 75 | D102: Voeg functie toe: | O102: 0 | P102: 0 | Q102: 0 | T102: - | X102: - | Y102: 0.00 | Z102: 0.00 | AA102: =IF(D102<>$D$168, IF(MATCH(D102,D$28:D102,0)=ROW(D102)-ROW(D$28)+1, _xlfn.XLOOKUP(D102,$E$28:$E$127,$P$28:$P$127,0,0), 0), 0) -> 0.00 | AB102: 0.00 | AC102: 0.00
C103: 76 | D103: Voeg functie toe: | O103: 0 | P103: 0 | Q103: 0 | T103: - | X103: - | Y103: 0.00 | Z103: 0.00 | AA103: =IF(D103<>$D$168, IF(MATCH(D103,D$28:D103,0)=ROW(D103)-ROW(D$28)+1, _xlfn.XLOOKUP(D103,$E$28:$E$127,$P$28:$P$127,0,0), 0), 0) -> 0.00 | AB103: 0.00 | AC103: 0.00
C104: 77 | D104: Voeg functie toe: | O104: 0 | P104: 0 | Q104: 0 | T104: - | X104: - | Y104: 0.00 | Z104: 0.00 | AA104: =IF(D104<>$D$168, IF(MATCH(D104,D$28:D104,0)=ROW(D104)-ROW(D$28)+1, _xlfn.XLOOKUP(D104,$E$28:$E$127,$P$28:$P$127,0,0), 0), 0) -> 0.00 | AB104: 0.00 | AC104: 0.00
C105: 78 | D105: Voeg functie toe: | O105: 0 | P105: 0 | Q105: 0 | T105: - | X105: - | Y105: 0.00 | Z105: 0.00 | AA105: =IF(D105<>$D$168, IF(MATCH(D105,D$28:D105,0)=ROW(D105)-ROW(D$28)+1, _xlfn.XLOOKUP(D105,$E$28:$E$127,$P$28:$P$127,0,0), 0), 0) -> 0.00 | AB105: 0.00 | AC105: 0.00
C106: 79 | D106: Voeg functie toe: | O106: 0 | P106: 0 | Q106: 0 | T106: - | X106: - | Y106: 0.00 | Z106: 0.00 | AA106: =IF(D106<>$D$168, IF(MATCH(D106,D$28:D106,0)=ROW(D106)-ROW(D$28)+1, _xlfn.XLOOKUP(D106,$E$28:$E$127,$P$28:$P$127,0,0), 0), 0) -> 0.00 | AB106: 0.00 | AC106: 0.00
C107: 80 | D107: Voeg functie toe: | O107: 0 | P107: 0 | Q107: 0 | T107: - | X107: - | Y107: 0.00 | Z107: 0.00 | AA107: =IF(D107<>$D$168, IF(MATCH(D107,D$28:D107,0)=ROW(D107)-ROW(D$28)+1, _xlfn.XLOOKUP(D107,$E$28:$E$127,$P$28:$P$127,0,0), 0), 0) -> 0.00 | AB107: 0.00 | AC107: 0.00
C108: 81 | D108: Voeg functie toe: | O108: 0 | P108: 0 | Q108: 0 | T108: - | X108: - | Y108: 0.00 | Z108: 0.00 | AA108: =IF(D108<>$D$168, IF(MATCH(D108,D$28:D108,0)=ROW(D108)-ROW(D$28)+1, _xlfn.XLOOKUP(D108,$E$28:$E$127,$P$28:$P$127,0,0), 0), 0) -> 0.00 | AB108: 0.00 | AC108: 0.00
C109: 82 | D109: Voeg functie toe: | O109: 0 | P109: 0 | Q109: 0 | T109: - | X109: - | Y109: 0.00 | Z109: 0.00 | AA109: =IF(D109<>$D$168, IF(MATCH(D109,D$28:D109,0)=ROW(D109)-ROW(D$28)+1, _xlfn.XLOOKUP(D109,$E$28:$E$127,$P$28:$P$127,0,0), 0), 0) -> 0.00 | AB109: 0.00 | AC109: 0.00
C110: 83 | D110: Voeg functie toe: | O110: 0 | P110: 0 | Q110: 0 | T110: - | X110: - | Y110: 0.00 | Z110: 0.00 | AA110: =IF(D110<>$D$168, IF(MATCH(D110,D$28:D110,0)=ROW(D110)-ROW(D$28)+1, _xlfn.XLOOKUP(D110,$E$28:$E$127,$P$28:$P$127,0,0), 0), 0) -> 0.00 | AB110: 0.00 | AC110: 0.00
C111: 84 | D111: Voeg functie toe: | O111: 0 | P111: 0 | Q111: 0 | T111: - | X111: - | Y111: 0.00 | Z111: 0.00 | AA111: =IF(D111<>$D$168, IF(MATCH(D111,D$28:D111,0)=ROW(D111)-ROW(D$28)+1, _xlfn.XLOOKUP(D111,$E$28:$E$127,$P$28:$P$127,0,0), 0), 0) -> 0.00 | AB111: 0.00 | AC111: 0.00
C112: 85 | D112: Voeg functie toe: | O112: 0 | P112: 0 | Q112: 0 | T112: - | X112: - | Y112: 0.00 | Z112: 0.00 | AA112: =IF(D112<>$D$168, IF(MATCH(D112,D$28:D112,0)=ROW(D112)-ROW(D$28)+1, _xlfn.XLOOKUP(D112,$E$28:$E$127,$P$28:$P$127,0,0), 0), 0) -> 0.00 | AB112: 0.00 | AC112: 0.00
C113: 86 | D113: Voeg functie toe: | O113: 0 | P113: 0 | Q113: 0 | T113: - | X113: - | Y113: 0.00 | Z113: 0.00 | AA113: =IF(D113<>$D$168, IF(MATCH(D113,D$28:D113,0)=ROW(D113)-ROW(D$28)+1, _xlfn.XLOOKUP(D113,$E$28:$E$127,$P$28:$P$127,0,0), 0), 0) -> 0.00 | AB113: 0.00 | AC113: 0.00
C114: 87 | D114: Voeg functie toe: | O114: 0 | P114: 0 | Q114: 0 | T114: - | X114: - | Y114: 0.00 | Z114: 0.00 | AA114: =IF(D114<>$D$168, IF(MATCH(D114,D$28:D114,0)=ROW(D114)-ROW(D$28)+1, _xlfn.XLOOKUP(D114,$E$28:$E$127,$P$28:$P$127,0,0), 0), 0) -> 0.00 | AB114: 0.00 | AC114: 0.00
C115: 88 | D115: Voeg functie toe: | O115: 0 | P115: 0 | Q115: 0 | T115: - | X115: - | Y115: 0.00 | Z115: 0.00 | AA115: =IF(D115<>$D$168, IF(MATCH(D115,D$28:D115,0)=ROW(D115)-ROW(D$28)+1, _xlfn.XLOOKUP(D115,$E$28:$E$127,$P$28:$P$127,0,0), 0), 0) -> 0.00 | AB115: 0.00 | AC115: 0.00
C116: 89 | D116: Voeg functie toe: | O116: 0 | P116: 0 | Q116: 0 | T116: - | X116: - | Y116: 0.00 | Z116: 0.00 | AA116: =IF(D116<>$D$168, IF(MATCH(D116,D$28:D116,0)=ROW(D116)-ROW(D$28)+1, _xlfn.XLOOKUP(D116,$E$28:$E$127,$P$28:$P$127,0,0), 0), 0) -> 0.00 | AB116: 0.00 | AC116: 0.00
C117: 90 | D117: Voeg functie toe: | O117: 0 | P117: 0 | Q117: 0 | T117: - | X117: - | Y117: 0.00 | Z117: 0.00 | AA117: =IF(D117<>$D$168, IF(MATCH(D117,D$28:D117,0)=ROW(D117)-ROW(D$28)+1, _xlfn.XLOOKUP(D117,$E$28:$E$127,$P$28:$P$127,0,0), 0), 0) -> 0.00 | AB117: 0.00 | AC117: 0.00
C118: 91 | D118: Voeg functie toe: | O118: 0 | P118: 0 | Q118: 0 | T118: - | X118: - | Y118: 0.00 | Z118: 0.00 | AA118: =IF(D118<>$D$168, IF(MATCH(D118,D$28:D118,0)=ROW(D118)-ROW(D$28)+1, _xlfn.XLOOKUP(D118,$E$28:$E$127,$P$28:$P$127,0,0), 0), 0) -> 0.00 | AB118: 0.00 | AC118: 0.00
C119: 92 | D119: Voeg functie toe: | O119: 0 | P119: 0 | Q119: 0 | T119: - | X119: - | Y119: 0.00 | Z119: 0.00 | AA119: =IF(D119<>$D$168, IF(MATCH(D119,D$28:D119,0)=ROW(D119)-ROW(D$28)+1, _xlfn.XLOOKUP(D119,$E$28:$E$127,$P$28:$P$127,0,0), 0), 0) -> 0.00 | AB119: 0.00 | AC119: 0.00
C120: 93 | D120: Voeg functie toe: | O120: 0 | P120: 0 | Q120: 0 | T120: - | X120: - | Y120: 0.00 | Z120: 0.00 | AA120: =IF(D120<>$D$168, IF(MATCH(D120,D$28:D120,0)=ROW(D120)-ROW(D$28)+1, _xlfn.XLOOKUP(D120,$E$28:$E$127,$P$28:$P$127,0,0), 0), 0) -> 0.00 | AB120: 0.00 | AC120: 0.00
C121: 94 | D121: Voeg functie toe: | O121: 0 | P121: 0 | Q121: 0 | T121: - | X121: - | Y121: 0.00 | Z121: 0.00 | AA121: =IF(D121<>$D$168, IF(MATCH(D121,D$28:D121,0)=ROW(D121)-ROW(D$28)+1, _xlfn.XLOOKUP(D121,$E$28:$E$127,$P$28:$P$127,0,0), 0), 0) -> 0.00 | AB121: 0.00 | AC121: 0.00
C122: 95 | D122: Voeg functie toe: | O122: 0 | P122: 0 | Q122: 0 | T122: - | X122: - | Y122: 0.00 | Z122: 0.00 | AA122: =IF(D122<>$D$168, IF(MATCH(D122,D$28:D122,0)=ROW(D122)-ROW(D$28)+1, _xlfn.XLOOKUP(D122,$E$28:$E$127,$P$28:$P$127,0,0), 0), 0) -> 0.00 | AB122: 0.00 | AC122: 0.00
C123: 96 | D123: Voeg functie toe: | O123: 0 | P123: 0 | Q123: 0 | T123: - | X123: - | Y123: 0.00 | Z123: 0.00 | AA123: =IF(D123<>$D$168, IF(MATCH(D123,D$28:D123,0)=ROW(D123)-ROW(D$28)+1, _xlfn.XLOOKUP(D123,$E$28:$E$127,$P$28:$P$127,0,0), 0), 0) -> 0.00 | AB123: 0.00 | AC123: 0.00
C124: 97 | D124: Voeg functie toe: | O124: 0 | P124: 0 | Q124: 0 | T124: - | X124: - | Y124: 0.00 | Z124: 0.00 | AA124: =IF(D124<>$D$168, IF(MATCH(D124,D$28:D124,0)=ROW(D124)-ROW(D$28)+1, _xlfn.XLOOKUP(D124,$E$28:$E$127,$P$28:$P$127,0,0), 0), 0) -> 0.00 | AB124: 0.00 | AC124: 0.00
C125: 98 | D125: Voeg functie toe: | O125: 0 | P125: 0 | Q125: 0 | T125: - | X125: - | Y125: 0.00 | Z125: 0.00 | AA125: =IF(D125<>$D$168, IF(MATCH(D125,D$28:D125,0)=ROW(D125)-ROW(D$28)+1, _xlfn.XLOOKUP(D125,$E$28:$E$127,$P$28:$P$127,0,0), 0), 0) -> 0.00 | AB125: 0.00 | AC125: 0.00
C126: 99 | D126: Voeg functie toe: | O126: 0 | P126: 0 | Q126: 0 | T126: - | X126: - | Y126: 0.00 | Z126: 0.00 | AA126: =IF(D126<>$D$168, IF(MATCH(D126,D$28:D126,0)=ROW(D126)-ROW(D$28)+1, _xlfn.XLOOKUP(D126,$E$28:$E$127,$P$28:$P$127,0,0), 0), 0) -> 0.00 | AB126: 0.00 | AC126: 0.00
C127: 100 | D127: Voeg functie toe: | O127: 0 | P127: 0 | Q127: 0 | T127: - | X127: - | Y127: 0.00 | Z127: 0.00 | AA127: =IF(D127<>$D$168, IF(MATCH(D127,D$28:D127,0)=ROW(D127)-ROW(D$28)+1, _xlfn.XLOOKUP(D127,$E$28:$E$127,$P$28:$P$127,0,0), 0), 0) -> 0.00 | AB127: 0.00 | AC127: 0.00
C128: < Klik hier voor meer invoervelden. | F128: =IF(AND(OR(D128=$D$157,D128=$D$168),E128=""),"!!!","") ->  | K128: =IF(OR(AND(E128=$D$173,J128>=60),AND(E128=$D$174,J128<60),AND(E128=$D$175,J128>=80),AND(E128=$D$176,J128<80)),"!","") -> 
C129: Foutmeldingen:
C130: =IF(COUNTIF(K28:K128,"!")>0,"!","") ->  | D130: =IF($C$130="!","Let op! Eén of meerdere ingevoerde GO's voldoen niet aan de criteria. Let goed op de ingevoerde woonfunctie.","") -> 
C131: =IF(COUNTIF(F28:F128,"!!")>0,"!!","") ->  | D131: =IF($C$131="!!","Let op dat bij alle functies 'wonen' of 'gemeenschappelijke ruimte' een subfunctie wordt ingevuld","") -> 
C132: =IF(AND(SUM(Q28:Q127)<50,SUM(Q28:Q127)),"!!!","") ->  | D132: =IF($C$132="!!!","Let op! Voor gebouwen kleiner dan 50 m2 geldt géén MPG eis","") -> 
B134: ="© W/E adviseurs, Utrecht/Eindhoven" -> © W/E adviseurs, Utrecht/Eindhoven
C138: Ondersteunende data en informatie
D140: Informatie
D141: Alle berekeningen worden gedaan op basis van de aangepaste Omgevingsregeling en Bbl-besluit van datum 02-04-2025. Deze kunnen via onderstaande links bekeken worden.
C142: a | D142: Omgevingsregeling dd 02-04-2025
C143: b | D143: Bbl-besluit dd 02-04-2025
C145: 1 | D145: Meer gebruiksfuncties kunnen worden toegevoegd door de rijen uit te klappen.
C146: 2 | D146: Rood gearceerde cellen moeten worden ingevuld. Deze lichten automatisch op als een functie wordt geselecteerd.
C147: 3 | D147: Gemeenschappelijke ruimtes kunnen automatisch worden verdeeld naar rato over alle gebruiksfuncties, of worden toegewezen aan maximaal één gebruiksfunctie
C148: 4 | D148: Een gemeenschappelijke ruimte kan niet worden toegekend aan een andere gemeenschappelijke ruimte.
C149: 5 | D149: Een gemeenschappelijke ruimte kan niet worden toegekend aan een functie zonder eis.
C150: 6 | D150: Een gemeenschappelijke ruimte wordt toegewezen aan de éérste (bovenste) gebruiksfunctie, als die gebruiksfunctie meerdere keren voorkomt.
C151: 7 | D151: Bij kantoorfuncties moet het verliesoppervlak van het hele gebouw worden ingevoerd, niet alleen het deel dat direct betrekking heeft op de ingevoerde ruimte.
C152: 8 | D152: Een subfunctie kan worden verwijderd met Delete.
D154: Tabel 1
C155: Nr. | D155: Gebruiksfunctie | E155: MPG eis | F155: specificeren? | G155: Notitie
C156: 1 | D156: Voeg functie toe: | E156: - | F156: 0 | X156: Voeg functie toe: | Z156: Wordt naar verwezen in formules: term moet in deze regel staan
C157: 2 | D157: Woon | E157: 1.60 | F157: 1 | G157: tenzij klein gebruiksoppervlakte, zie Tabel 2 en 4 | X157: Woon | Z157: Wordt naar verwezen in formules: term moet in deze regel staan
C158: 3 | D158: Bijeenkomst | E158: 1.85 | F158: 0
C159: 4 | D159: Cel | E159: 1.85 | F159: 0
C160: 5 | D160: Gezondheidzorg | E160: 1.85 | F160: 0
C161: 6 | D161: Industrie | E161: 1.85 | F161: 0
C162: 7 | D162: Kantoor | E162: 1.55 | F162: 0 | G162: tenzij afwijkende vormfactor, zie Tabel 3 | X162: Kantoor | Z162: Wordt naar verwezen in formules: term moet in deze regel staan
C163: 8 | D163: Logies | E163: 1.85 | F163: 0
C164: 9 | D164: Onderwijs | E164: 1.85 | F164: 0
C165: 10 | D165: Sport | E165: 1.85 | F165: 0
C166: 11 | D166: Winkel | E166: 1.85 | F166: 0
C167: 12 | D167: Overige gebruiksfunctie | E167: 1.80 | F167: 0
C168: 14 | D168: Gemeenschappelijke Ruimte | E168: GO verdeeld | F168: 1 | X168: Gemeenschappelijke Ruimte | Z168: Wordt naar verwezen in formules: term moet in deze regel staan
C169: 15 | D169: Bouwwerk geen gebouw zijnde | E169: geen eis | F169: 0 | G169: kan niet gekozen worden want heeft geen eis (buiten beschouwing) | X169: Bouwwerk geen gebouw zijnde | Z169: Wordt naar verwezen in formules: term moet in deze regel staan
D171: Tabel 2
C172: Nr. | D172: Wonen | E172: MPG eis | F172: grens m2
C173: a1 | D173: ="Woongebouw, <"&$F173&"m2" -> Woongebouw, <60m2 | E173: 1.60 | F173: 60.0 | G173: Afwijkende MPG is van toepassing. Zie formule omgevingsregeling. Bepalen met formule Omgevingsregeling art. 5.32b(a) | X173: Grenswaarde woongebouw kleiner dan
C174: a2 | D174: ="Woongebouw, ≥ "&$F174& "m2" -> Woongebouw, ≥ 60m2 | E174: 1.60 | F174: 60.0 | X174: Grenswaarde woongebouw groter of gelijk aan
C175: c1 | D175: ="Andere Woonfunctie, <"&$F175&"m2" -> Andere Woonfunctie, <80m2 | E175: 1.60 | F175: 80.0 | G175: Afwijkende MPG is van toepassing. Zie formule omgevingsregeling. Bepalen met formule Omgevingsregeling art. 5.32b(b) | X175: Grenswaarde andere woonfunctie kleiner dan
C176: c1 | D176: ="Andere Woonfunctie, ≥"&$F176&"m2" -> Andere Woonfunctie, ≥80m2 | E176: 1.60 | F176: 80.0 | X176: Grenswaarde andere woonfunctie groter of gelijk aan
C177: b | D177: Woonwagen | E177: geen eis | F177: grens m2 | G177: kan niet gekozen worden want heeft geen eis (buiten beschouwing)
D180: Kantoorfunctie:
D181: MPG eis is afhankelijk van de vormfactor (m.a.w. de compactheid van het gebouw):
D182: Compactheid | E182: MPG eis
D183: <2,5 | E183: 1.55
D184: >2,5 | E184: 1,55+0,75*(As/Ag-2,5) | G184: Afwijkende MPG is van toepassing. Zie formule omgevingsregeling. Bepalen met formule Omgevingsregeling art. 5.32b(c)
D186: Tabel 3
C187: Nr. | D187: Voorbeeld | E187: g.o.gebouw [m2] | G187: Als;gebouw [m2] | H187: Compactheid | J187: MPG eis
C188: 1 | D188: kantoorgebouw 1 | E188: 100 | G188: 120 | H188: =G188/E188 -> 1.20 | J188: =IF(H188<2.5,$E$183,1.55+0.75*(H188-2.5)) -> 1.55
C189: 2 | D189: kantoorgebouw 2 | E189: 500 | G189: 1500 | H189: =G189/E189 -> 3.00 | J189: =IF(H189<2.5,$E$183,1.55+0.75*(H189-2.5)) -> 1.93
C190: 3 | D190: Kantoorgebouw 3 | E190: 1000 | G190: 600 | H190: =G190/E190 -> 0.60 | J190: 1.55
C191: 4 | D191: Kantoorgebouw 4 | E191: 1000 | G191: 2600 | H191: =G191/E191 -> 2.60 | J191: 1.63
D193: Woonfunctie:
D194: MPG eis is afhankelijk van de gebruiksoppervlakte:
D195: Subfunctie | E195: MPG eis
D196: Woongebouw, <60m2 | E196: 1,6 + 0,015 * (60 - g.o.functie)
D197: Andere Woonfunctie, <80m2 | E197: 1,6 + 0,015 * (60 - g.o.functie)
D200: Tabel 4
C201: Nr. | D201: Voorbeeld | E201: g.o.gebouw [m2] | G201: MPG eis
C202: 1 | D202: Woongebouw 1 | E202: 50 | G202: =1.6+0.015*(60-E202) -> 1.75
C203: 2 | D203: Woongebouw 2 | E203: 70 | G203: 1.60
C204: 3 | D204: Andere Woonfunctie 1 | E204: 70 | G204: =1.6+0.015*(80-E204) -> 1.75
C205: 4 | D205: Andere Woonfunctie 2 | E205: 100 | G205: 1.60
A207: verbergen | D207: Tabel 5 (verbergen in eindversie)
A208: verbergen | D208: =$D$157 -> Woon | E208: =$D$168 -> Gemeenschappelijke Ruimte | G208: uitsluiten | I208: hoe GR verdelen?
A209: verbergen | C209: 0 | D209: Woongebouw, <60m2 | E209: Verdeel naar rato GO | G209: Voeg functie toe: | I209: =_xlfn.XLOOKUP($G$210,$D$28:$D$127,$E$28:$E$127,,0) ->  | J209: =_xlfn.UNIQUE(_xlfn._xlws.FILTER($E$28:$E$127, COUNTIF($D$209:$D$213, $E$28:$E$127)=0,"")) -> 0
A210: verbergen | C210: 1 | D210: Woongebouw, ≥ 60m2 | E210: =_xlfn.UNIQUE(_xlfn._xlws.FILTER($D$28:$D$127, COUNTIF($G$209:$G$210, $D$28:$D$127)=0)) -> Kantoor | G210: Gemeenschappelijke Ruimte | J210: Verdeel naar rato GO
A211: verbergen | C211: 2 | D211: Andere Woonfunctie, <80m2
A212: verbergen | C212: 3 | D212: Andere Woonfunctie, ≥80m2
A213: verbergen | C213: 4
A214: verbergen | C214: 5
A215: verbergen | C215: 6
A216: verbergen | C216: 7
A217: verbergen | C217: 8
A218: verbergen | C218: 9
A219: verbergen | C219: 10
... 1 more rows
